bitfinex/quotes_SOLUSD_20241121
["timestamp","ask_amount","ask_price","bid_price","bid_amount"]
[1732160704294,24.91384144,235.24,235.21,9.97104268]
[1732160705119,24.91384144,235.27,235.22,28.73282645]
[1732160705306,24.91384144,235.25,235.22,4.95594245]
[1732160707222,24.91384144,235.26,235.22,4.95594245]
[1732160708209,0.79695105,235.31,235.22,4.95594245]
[1732160708210,24.91384144,235.23,235.22,4.95594245]
[1732160709571,24.91384144,235.23,235.2,4.95594245]
[1732160710025,24.91384144,235.26,235.2,4.95594245]
[1732160710340,24.91384144,235.28,235.21,5.01510023]
[1732160710624,15.5764909,235.28,235.22,4.95594245]
[1732160710826,15.5764909,235.29,235.22,9.97104268]
[1732160711004,15.5764909,235.26,235.23,5.01510023]
[1732160711196,15.5764909,235.26,235.22,4.95594245]
[1732160712825,15.5764909,235.25,235.22,4.95594245]
[1732160713198,15.5764909,235.23,235.22,4.95594245]
[1732160713407,15.5764909,235.23,235.18,5.01510023]
[1732160713713,1.29685958,235.31,235.18,5.01510023]
[1732160713714,15.5764909,235.21,235.18,5.01510023]
[1732160714415,15.5764909,235.22,235.18,5.01510023]
[1732160714622,15.5764909,235.27,235.19,5.23465082]
[1732160714943,15.5764909,235.27,235.2,5.28459756]
[1732160715105,15.5764909,235.27,235.21,5.23465082]
[1732160715309,15.5764909,235.27,235.21,10.51924838]
[1732160715931,15.5764909,235.29,235.22,5.28459756]
[1732160716140,15.5764909,235.31,235.23,5.23465082]
[1732160716430,15.5764909,235.29,235.23,5.23465082]
[1732160716821,15.5764909,235.29,235.23,10.51924838]
[1732160717440,0.79679646,235.34,235.23,10.51924838]
[1732160717441,15.5764909,235.28,235.23,10.51924838]
[1732160717735,0.79679646,235.34,235.23,10.51924838]
[1732160717736,15.5764909,235.26,235.23,10.51924838]
[1732160717908,15.5764909,235.27,235.23,10.51924838]
[1732160718736,15.5764909,235.29,235.23,10.51924838]
[1732160718914,15.5764909,235.3,235.24,5.53869634]
[1732160719115,0.79680862,235.37,235.25,9.91911458]
[1732160719324,12.3352,235.43,235.28,23.776884]
[1732160719617,15.5764909,235.42,235.3,23.776884]
[1732160719833,15.5764909,235.4,235.31,16.09498622]
[1732160720031,15.5764909,235.4,235.31,15.45781092]
[1732160720241,15.5764909,235.43,235.31,15.45781092]
[1732160720409,15.5764909,235.43,235.32,20.63720566]
[1732160720607,24.88897065,235.43,235.33,15.45781092]
[1732160721135,24.88897065,235.43,235.34,20.0]
[1732160721331,24.88897065,235.47,235.35,11.67382021]
[1732160722536,24.88897065,235.46,235.35,11.67382021]
[1732160722837,24.88897065,235.48,235.36,24.42115836]
[1732160723162,24.88897065,235.45,235.37,11.67365897]
[1732160723313,24.88897065,235.43,235.37,11.03665256]
[1732160723709,0.79625801,235.51,235.37,11.03665256]
[1732160723710,24.88897065,235.44,235.37,11.03665256]
[1732160724242,24.88897065,235.46,235.37,11.03665256]
[1732160724414,24.88897065,235.45,235.38,0.63704262]
[1732160724614,24.88897065,235.44,235.39,11.03665256]
[1732160725145,24.88897065,235.46,235.39,11.03665256]
[1732160725446,24.88897065,235.47,235.39,11.03665256]
[1732160725615,24.88897065,235.46,235.39,11.03665256]
[1732160725811,24.88897065,235.46,235.4,12.7959]
[1732160726037,24.88897065,235.47,235.41,5.49795622]
[1732160726219,24.88897065,235.44,235.41,5.49795622]
[1732160726425,24.88897065,235.42,235.37,8.36448978]
[1732160726718,24.276884,235.5,235.27,1.0]
[1732160726719,24.88897065,235.38,235.35,18.29385622]
[1732160726937,24.88897065,235.37,235.35,18.29385622]
[1732160727240,24.88897065,235.38,235.35,18.29385622]
[1732160728042,24.88897065,235.38,235.35,26.8366136]
[1732160728217,24.88897065,235.44,235.35,14.0407136]
[1732160728428,24.88897065,235.38,235.35,14.0407136]
[1732160728653,24.88897065,235.37,235.35,14.0407136]
[1732160729346,24.88897065,235.36,235.35,5.49795622]
[1732160729543,24.88897065,235.36,235.24,5.49795622]
[1732160729759,24.88897065,235.3,235.24,5.49795622]
[1732160730243,24.88897065,235.3,235.24,11.03665256]
[1732160730750,24.88897065,235.29,235.24,11.03665256]
[1732160730955,24.88897065,235.26,235.24,11.03665256]
[1732160731158,24.88897065,235.27,235.24,11.03665256]
[1732160731337,24.88897065,235.28,235.24,11.03665256]
[1732160732636,24.88897065,235.29,235.24,11.03665256]
[1732160732844,0.79686643,235.36,235.24,11.03665256]
[1732160733130,24.88897065,235.35,235.25,10.30833315]
[1732160733352,24.88897065,235.33,235.26,5.49795622]
[1732160733653,24.88897065,235.33,235.27,5.53869634]
[1732160733954,24.88897065,235.33,235.28,5.49795622]
[1732160734157,24.88897065,235.33,235.28,11.03665256]
[1732160734740,24.88897065,235.34,235.28,11.03665256]
[1732160735133,24.88897065,235.34,235.29,5.53869634]
[1732160735460,24.88897065,235.34,235.3,5.49795622]
[1732160736330,24.88897065,235.38,235.3,11.03665256]
[1732160736534,24.88897065,235.38,235.31,5.53869634]
[1732160736752,24.88897065,235.38,235.32,5.49795622]
[1732160737360,24.88897065,235.38,235.32,11.03665256]
[1732160737743,24.88897065,235.41,235.33,5.53869634]
[1732160737947,13.3158,235.49,235.34,5.49795622]
[1732160737948,24.88897065,235.42,235.34,5.49795622]
[1732160738463,0.79645193,235.48,235.34,11.03665256]
[1732160738464,24.88897065,235.45,235.34,11.03665256]
[1732160738761,24.88897065,235.45,235.35,17.85889634]
[1732160739061,24.88897065,235.45,235.36,5.49795622]
[1732160739357,24.88897065,235.45,235.37,5.53869634]
[1732160739581,24.88897065,235.45,235.38,25.49795622]
[1732160739731,24.88897065,235.46,235.38,25.49795622]
[1732160739931,1.29634551,235.54,235.41,23.776884]
[1732160739932,24.88897065,235.51,235.41,23.776884]
[1732160740144,24.88897065,235.51,235.42,5.49795622]
[1732160740541,24.88897065,235.5,235.42,5.49795622]
[1732160740836,24.88897065,235.51,235.43,5.53869634]
[1732160741153,24.88897065,235.5,235.44,5.49795622]
[1732160741342,24.88897065,235.56,235.44,5.49795622]
[1732160741343,24.88897065,235.46,235.44,5.49795622]
[1732160741545,24.88897065,235.45,235.4,20.0]
[1732160741766,24.88897065,235.42,235.35,17.81815622]
[1732160741970,0.79636333,235.53,235.41,11.03665256]
[1732160742261,24.88897065,235.52,235.42,20.0]
[1732160742563,24.88897065,235.52,235.44,20.0]
[1732160742738,24.88897065,235.52,235.45,11.03665256]
[1732160742937,24.88897065,235.5,235.45,11.03665256]
[1732160743131,24.88897065,235.46,235.44,20.0]
[1732160743341,24.88897065,235.45,235.4,20.0]
[1732160743541,24.88897065,235.43,235.4,20.0]
[1732160743764,24.88897065,235.48,235.41,5.49795622]
[1732160743937,0.5,235.58,235.41,5.49795622]
[1732160743938,0.79620047,235.55,235.42,20.0]
[1732160744149,24.88897065,235.52,235.43,11.03665256]
[1732160745376,24.88897065,235.51,235.44,20.0]
[1732160745547,24.88897065,235.5,235.44,20.0]
[1732160745949,24.88897065,235.5,235.44,25.49795622]
[1732160746252,24.88897065,235.45,235.44,20.0]
[1732160746460,24.88897065,235.47,235.39,8.4355104]
[1732160746645,24.88897065,235.47,235.4,11.03665256]
[1732160746845,24.88897065,235.47,235.41,20.0]
[1732160747276,24.88897065,235.46,235.41,20.0]
[1732160747473,24.88897065,235.47,235.41,20.0]
[1732160747674,24.88897065,235.5,235.42,11.03665256]
[1732160747867,24.88897065,235.46,235.43,20.0]
[1732160748077,24.88897065,235.45,235.43,20.0]
[1732160748850,24.88897065,235.45,235.36,5.53869634]
[1732160749049,24.88897065,235.43,235.37,25.49795622]
[1732160749791,24.88897065,235.45,235.38,5.53869634]
[1732160749949,24.88897065,235.45,235.39,25.49795622]
[1732160750150,24.88897065,235.49,235.4,5.53869634]
[1732160750349,24.88897065,235.47,235.41,25.49795622]
[1732160750577,24.88897065,235.46,235.42,5.53869634]
[1732160750759,15.55388298,235.44,235.42,5.53869634]
[1732160750959,15.55388298,235.43,235.42,5.53869634]
[1732160751778,15.55388298,235.43,235.41,5.49795622]
[1732160752277,0.79634194,235.5,235.36,5.53869634]
[1732160752278,15.55388298,235.42,235.36,5.53869634]
[1732160752580,28.4537706,235.71,235.35,5.49795622]
[1732160752581,15.55388298,235.37,235.35,5.49795622]
[1732160753579,15.55388298,235.36,235.35,5.49795622]
[1732160754062,15.55388298,235.36,235.35,25.49795622]
[1732160754659,24.90482856,235.37,235.36,20.0]
[1732160755450,24.90482856,235.38,235.36,20.0]
[1732160756563,24.90482856,235.37,235.36,20.0]
[1732160757162,24.90482856,235.38,235.36,20.0]
[1732160757768,24.90482856,235.42,235.36,20.0]
[1732160757957,24.90482856,235.42,235.38,20.0]
[1732160758278,24.90482856,235.41,235.38,25.49795622]
[1732160758686,24.90482856,235.42,235.4,20.0]
[1732160758980,24.90482856,235.41,235.4,20.0]
[1732160759468,24.90482856,235.42,235.4,20.0]
[1732160759879,24.90482856,235.42,235.39,5.49795622]
[1732160760087,24.90482856,235.44,235.39,5.49795622]
[1732160760088,24.90482856,235.4,235.39,5.49795622]
[1732160760287,24.90482856,235.4,235.38,20.0]
[1732160760783,24.90482856,235.4,235.38,31.03665256]
[1732160761171,1.29651215,235.47,235.31,8.64751558]
[1732160761172,24.90482856,235.41,235.35,20.0]
[1732160761373,24.90482856,235.41,235.38,11.03665256]
[1732160761556,24.90482856,235.41,235.39,20.0]
[1732160763584,24.90482856,235.41,235.31,25.53869634]
[1732160763884,24.90482856,235.38,235.31,31.03665256]
[1732160764182,24.90482856,235.36,235.31,31.03665256]
[1732160765487,24.90482856,235.33,235.31,11.03665256]
[1732160766259,24.90482856,235.35,235.31,11.03665256]
[1732160766495,0.79655056,235.43,235.31,11.03665256]
[1732160766659,24.90482856,235.42,235.32,25.49795622]
[1732160766989,24.90482856,235.42,235.34,20.0]
[1732160767187,24.90482856,235.42,235.36,20.0]
[1732160767483,24.90482856,235.42,235.38,20.0]
[1732160767695,24.90482856,235.44,235.39,5.49795622]
[1732160767899,24.90482856,235.47,235.4,20.0]
[1732160768063,24.90482856,235.47,235.42,20.0]
[1732160768264,24.90482856,235.47,235.42,25.49795622]
[1732160768574,24.90482856,235.47,235.44,20.0]
[1732160768770,24.90482856,235.47,235.45,5.49795622]
[1732160768990,24.90482856,235.5,235.46,20.0]
[1732160769288,24.90482856,235.5,235.47,5.49795622]
[1732160770071,24.90482856,235.51,235.48,20.0]
[1732160770559,24.90482856,235.51,235.48,25.49795622]
[1732160770760,24.90482856,235.51,235.42,5.53869634]
[1732160770761,24.90482856,235.51,235.43,25.49795622]
[1732160770976,24.90482856,235.45,235.35,12.8458]
[1732160771179,24.90482856,235.45,235.38,20.0]
[1732160771378,24.90482856,235.45,235.4,20.0]
[1732160771586,24.90482856,235.45,235.4,31.03665256]
[1732160772366,24.90482856,235.45,235.41,5.49795622]
[1732160772696,24.90482856,235.5,235.42,20.0]
[1732160772868,24.90482856,235.52,235.43,11.03665256]
[1732160773067,24.90482856,235.52,235.44,20.0]
[1732160773389,0.79633304,235.54,235.46,20.0]
[1732160773590,24.90482856,235.47,235.46,20.0]
[1732160773971,24.90482856,235.49,235.46,25.49795622]
[1732160774176,24.90482856,235.5,235.46,25.49795622]
[1732160774387,24.90482856,235.51,235.48,20.0]
[1732160774898,15.54734565,235.51,235.48,20.0]
[1732160775389,15.54734565,235.52,235.5,20.0]
[1732160775596,0.5,235.58,235.5,20.0]
[1732160775778,15.54734565,235.52,235.49,20.0]
[1732160775980,15.54734565,235.5,235.39,25.49795622]
[1732160776198,15.54734565,235.48,235.39,31.03665256]
[1732160776371,15.54734565,235.5,235.41,20.0]
[1732160776576,15.54734565,235.5,235.43,20.0]
[1732160776895,15.54734565,235.5,235.44,11.03665256]
[1732160777194,15.54734565,235.46,235.35,12.8458]
[1732160777371,15.54734565,235.44,235.35,12.8458]
[1732160777570,15.54734565,235.46,235.35,17.83820067]
[1732160777792,15.54734565,235.46,235.36,4.99240067]
[1732160778705,24.88859255,235.45,235.36,24.99240067]
[1732160779195,24.88859255,235.51,235.4,20.0]
[1732160779500,24.88859255,235.51,235.41,9.47231923]
[1732160779803,24.88859255,235.51,235.42,20.0]
[1732160780097,24.88859255,235.51,235.43,4.99240067]
[1732160780803,24.88859255,235.53,235.43,9.47231923]
[1732160781110,24.88859255,235.51,235.44,20.0]
[1732160781271,24.88859255,235.53,235.45,4.99240067]
[1732160782072,24.88859255,235.55,235.47,20.0]
[1732160782271,24.88859255,235.59,235.48,4.99240067]
[1732160782469,24.88859255,235.59,235.5,20.0]
[1732160782666,24.88859255,235.61,235.51,4.99240067]
[1732160782872,24.88859255,235.61,235.52,20.0]
[1732160783185,24.88859255,235.61,235.53,4.99240067]
[1732160784193,24.88859255,235.55,235.53,4.99240067]
[1732160784503,24.88859255,235.54,235.47,12.1559]
[1732160784680,24.88859255,235.5,235.47,12.1559]
[1732160784872,24.88859255,235.52,235.47,12.1559]
[1732160786014,24.88859255,235.52,235.48,20.0]
[1732160786684,24.88859255,235.54,235.49,4.99240067]
[1732160786874,24.88859255,235.57,235.49,4.99240067]
[1732160787079,24.88859255,235.59,235.5,20.0]
[1732160787288,24.88859255,235.59,235.51,4.99240067]
[1732160787992,24.88859255,235.58,235.51,4.99240067]
[1732160788502,24.88859255,235.54,235.51,4.99240067]
[1732160788680,0.5,235.64,235.48,24.99240067]
[1732160788681,24.88859255,235.55,235.48,24.99240067]
[1732160788883,24.88859255,235.56,235.49,4.99240067]
[1732160789783,24.88859255,235.54,235.49,4.99240067]
[1732160790001,0.7959411,235.63,235.49,4.99240067]
[1732160790002,24.88859255,235.51,235.49,4.99240067]
[1732160790683,24.88859255,235.52,235.49,4.99240067]
[1732160790881,0.79609868,235.61,235.49,4.99240067]
[1732160790882,24.88859255,235.55,235.49,4.99240067]
[1732160791305,24.88859255,235.56,235.49,4.99240067]
[1732160791883,24.88859255,235.54,235.49,4.99240067]
[1732160792085,24.88859255,235.52,235.49,4.99240067]
[1732160792311,24.88859255,235.52,235.48,20.0]
[1732160792491,0.79600275,235.62,235.48,20.0]
[1732160792492,24.88859255,235.56,235.48,24.99240067]
[1732160792811,24.88859255,235.56,235.49,4.99240067]
[1732160793212,24.88859255,235.55,235.49,4.99240067]
[1732160793808,49.16547655,235.5,235.31,46.4029]
[1732160793984,24.88859255,235.37,235.31,46.4029]
[1732160794312,24.88859255,235.39,235.31,46.4029]
[1732160795391,24.88859255,235.37,235.31,46.4029]
[1732160795607,24.88859255,235.39,235.31,46.4029]
[1732160795996,24.88859255,235.39,235.32,20.0]
[1732160796401,24.88859255,235.37,235.32,20.0]
[1732160799195,0.7964957,235.43,235.32,20.0]
[1732160799396,24.88859255,235.45,235.36,20.0]
[1732160799708,24.88859255,235.45,235.38,20.0]
[1732160799908,24.88859255,235.47,235.38,20.0]
[1732160801605,24.88859255,235.47,235.39,0.6369619]
[1732160801817,24.88859255,235.47,235.4,23.776884]
[1732160802019,24.88859255,235.49,235.41,20.0]
[1732160802913,24.88859255,235.47,235.41,20.0]
[1732160803922,24.88859255,235.48,235.41,20.0]
[1732160804407,24.88859255,235.5,235.44,20.0]
[1732160804730,24.88859255,235.52,235.46,20.0]
[1732160805725,24.88859255,235.54,235.46,20.0]
[1732160806021,24.88859255,235.51,235.46,20.0]
[1732160806321,24.88859255,235.48,235.44,20.0]
[1732160806623,24.88859255,235.45,235.44,20.0]
[1732160806809,0.79614036,235.55,235.44,20.0]
[1732160807013,24.88859255,235.45,235.44,20.0]
[1732160807308,24.88859255,235.45,235.33,50.3739]
[1732160807512,24.88859255,235.43,235.33,62.3869]
[1732160808019,24.88859255,235.43,235.33,62.8869]
[1732160808600,21.76528729,235.42,235.33,1.70736995]
[1732160808815,24.88859255,235.34,235.29,3.67806082]
[1732160809006,24.88859255,235.34,235.19,21.96941661]
[1732160809204,24.88859255,235.32,235.17,21.10266043]
[1732160809501,24.88859255,235.32,235.27,70.0]
[1732160809718,24.88859255,235.32,235.28,0.33213176]
[1732160810020,24.88859255,235.3,235.24,70.0]
[1732160810223,13.93050685,235.33,235.11,25.36]
[1732160810224,13.93050685,235.33,235.3,70.0]
[1732160810732,24.88859255,235.31,235.26,70.0]
[1732160810927,24.88859255,235.27,235.22,70.0]
[1732160811305,24.88859255,235.28,235.25,70.0]
[1732160811835,24.88859255,235.3,235.27,13.0047]
[1732160812135,24.88859255,235.3,235.28,20.0]
[1732160812432,24.88859255,235.31,235.28,20.0]
[1732160814236,38.8190994,235.33,235.28,90.33235901]
[1732160814522,38.8190994,235.33,235.28,90.0]
[1732160815025,24.88859255,235.3,235.28,20.0]
[1732160815323,24.88859255,235.33,235.28,90.0]
[1732160815532,24.88859255,235.34,235.29,0.33209159]
[1732160815828,24.88859255,235.32,235.29,0.33209159]
[1732160816001,24.88859255,235.32,235.28,90.0]
[1732160817218,24.88859255,235.32,235.28,20.0]
[1732160818532,24.88859255,235.32,235.28,90.0]
[1732160818732,24.88859255,235.34,235.28,20.0]
[1732160819239,24.88859255,235.34,235.29,0.33214911]
[1732160820306,24.88859255,235.36,235.29,0.33214911]
[1732160820720,24.88859255,235.34,235.29,0.33214911]
[1732160821511,24.88859255,235.3,235.28,20.0]
[1732160822639,15.570295,235.29,235.28,20.0]
[1732160824723,24.91261639,235.29,235.28,20.0]
[1732160826639,23.91261639,235.29,235.28,20.0]
[1732160827022,23.91261639,235.29,235.14,21.06333475]
[1732160827023,23.91261639,235.29,235.21,30.4504]
[1732160827223,24.91261639,235.27,235.22,20.0]
[1732160827535,24.91261639,235.23,235.21,30.4504]
[1732160827915,24.91261639,235.33,235.22,73.97153729]
[1732160828137,24.91261639,235.33,235.23,0.33249746]
[1732160828341,24.91261639,235.33,235.24,3.97153729]
[1732160828546,24.91261639,235.34,235.25,70.33249098]
[1732160828716,24.91261639,235.34,235.26,23.97153729]
[1732160828917,24.91261639,235.34,235.23,3.59203029]
[1732160829444,24.91261639,235.32,235.21,100.4504]
[1732160829661,24.91261639,235.32,235.25,70.0]
[1732160829837,24.91261639,235.28,235.21,30.4504]
[1732160830417,24.91261639,235.26,235.21,30.4504]
[1732160830621,24.91261639,235.27,235.21,30.4504]
[1732160831341,24.91261639,235.26,235.21,30.4504]
[1732160831941,24.91261639,235.28,235.22,20.0]
[1732160832156,24.91261639,235.3,235.22,20.0]
[1732160832445,24.91261639,235.29,235.22,20.0]
[1732160832743,24.91261639,235.31,235.22,90.0]
[1732160833530,23.776884,235.36,235.25,70.0]
[1732160833734,24.91261639,235.33,235.25,70.0]
[1732160833928,24.91261639,235.32,235.25,70.0]
[1732160834146,24.91261639,235.33,235.26,20.0]
[1732160834449,24.91261639,235.32,235.26,20.0]
[1732160834633,24.91261639,235.36,235.28,70.0]
[1732160834951,0.5,235.41,235.28,70.0]
[1732160834952,24.91261639,235.37,235.28,70.0]
[1732160835123,24.91261639,235.38,235.31,70.0]
[1732160835330,24.91261639,235.33,235.32,20.0]
[1732160836031,24.91261639,235.33,235.25,70.0]
[1732160836230,24.91261639,235.31,235.25,70.0]
[1732160836835,24.91261639,235.29,235.25,70.0]
[1732160837235,24.91261639,235.27,235.21,30.4504]
[1732160840156,24.91261639,235.23,235.2,82.033]
[1732160840753,24.91261639,235.21,235.16,100.6298]
[1732160840977,24.91261639,235.25,235.16,100.6298]
[1732160841149,24.91261639,235.27,235.2,70.0]
[1732160841745,24.91261639,235.26,235.2,70.0]
[1732160841972,24.91261639,235.25,235.2,70.0]
[1732160842178,24.91261639,235.25,235.21,20.0]
[1732160842671,24.91261639,235.28,235.21,20.0]
[1732160842852,24.91261639,235.32,235.23,70.0]
[1732160843058,24.91261639,235.3,235.24,20.0]
[1732160843269,0.5,235.33,235.24,20.0]
[1732160843583,24.91261639,235.3,235.24,20.0]
[1732160843949,24.91261639,235.29,235.24,20.0]
[1732160844268,24.91261639,235.27,235.2,70.0]
[1732160844450,24.91261639,235.28,235.21,20.0]
[1732160844868,0.79664372,235.39,235.21,20.0]
[1732160844869,24.91261639,235.29,235.21,20.0]
[1732160845877,24.91261639,235.3,235.23,70.0]
[1732160846048,24.91261639,235.29,235.23,70.0]
[1732160846768,15.57021564,235.28,235.23,70.0]
[1732160846978,15.57021564,235.29,235.23,70.0]
[1732160847149,0.5,235.39,235.23,70.0]
[1732160847354,15.57021564,235.35,235.29,70.0]
[1732160847580,15.57021564,235.35,235.26,70.0]
[1732160847953,15.57021564,235.35,235.29,70.0]
[1732160848154,15.57021564,235.35,235.3,20.0]
[1732160848459,15.57021564,235.36,235.3,20.0]
[1732160849146,15.57021564,235.38,235.3,20.0]
[1732160849375,15.57021564,235.36,235.3,20.0]
[1732160850375,15.57021564,235.37,235.3,20.0]
[1732160851145,31.05133452,235.46,235.3,20.0]
[1732160851146,15.57021564,235.39,235.3,20.0]
[1732160851560,15.57021564,235.4,235.32,70.0]
[1732160852166,15.57021564,235.4,235.33,20.0]
[1732160852376,0.5,235.42,235.33,20.0]
[1732160852377,15.57021564,235.41,235.33,20.0]
[1732160853067,15.57021564,235.4,235.33,20.0]
[1732160853280,15.57021564,235.43,235.36,70.0]
[1732160853963,15.57021564,235.42,235.36,70.0]
[1732160855078,15.57021564,235.46,235.36,70.0]
[1732160855578,15.57021564,235.45,235.36,70.0]
[1732160856497,15.57021564,235.5,235.42,70.0]
[1732160856780,0.5,235.5,235.43,20.0]
[1732160856966,16.07021564,235.5,235.43,20.0]
[1732160857280,15.57021564,235.5,235.43,20.0]
[1732160857484,16.07021564,235.5,235.43,20.0]
[1732160857691,15.57021564,235.5,235.43,20.0]
[1732160857981,15.57021564,235.51,235.43,20.0]
[1732160859784,15.57021564,235.54,235.46,20.0]
[1732160859972,15.57021564,235.55,235.46,20.0]
[1732160860891,15.57021564,235.56,235.48,70.0]
[1732160861057,0.5,235.59,235.48,70.0]
[1732160861058,15.57021564,235.58,235.48,70.0]
[1732160861486,15.57021564,235.59,235.51,70.0]
[1732160862682,15.57021564,235.59,235.52,20.0]
[1732160864567,15.57021564,235.58,235.52,20.0]
[1732160864759,15.57021564,235.6,235.54,70.0]
[1732160864962,15.57021564,235.61,235.54,70.0]
[1732160866686,15.57021564,235.63,235.54,70.0]
[1732160866992,15.57021564,235.67,235.6,70.0]
[1732160867167,0.5,235.73,235.6,70.0]
[1732160867369,15.57021564,235.72,235.63,70.0]
[1732160867675,15.57021564,235.7,235.63,70.0]
[1732160867985,15.57021564,235.71,235.63,70.0]
[1732160868191,15.57021564,235.72,235.63,70.0]
[1732160868880,15.57021564,235.73,235.63,70.0]
[1732160869170,15.57021564,235.74,235.66,70.0]
[1732160869558,0.4653634,235.75,235.66,70.0]
[1732160869893,0.4653634,235.75,235.7,12.7986]
[1732160870395,16.03557904,235.75,235.71,20.0]
[1732160870865,0.4653634,235.75,235.71,20.0]
[1732160871886,15.57021564,235.72,235.64,12.1439]
[1732160872204,15.57021564,235.7,235.66,70.0]
[1732160872694,15.57021564,235.7,235.64,12.1439]
[1732160873566,15.57021564,235.74,235.68,70.0]
[1732160873766,0.4653634,235.75,235.68,70.0]
[1732160873979,0.4653634,235.75,235.69,4.35637071]
[1732160874760,0.4653634,235.75,235.69,24.35637071]
[1732160874960,16.03557904,235.75,235.69,24.35637071]
[1732160875187,16.03557904,235.75,235.69,20.0]
[1732160875387,16.03557904,235.75,235.68,70.0]
[1732160875388,15.57021564,235.7,235.65,70.0]
[1732160876170,15.57021564,235.7,235.61,30.4737]
[1732160876171,15.57021564,235.66,235.61,30.4737]
[1732160876371,15.57021564,235.65,235.61,30.4737]
[1732160876570,15.57021564,235.66,235.61,30.4737]
[1732160877780,15.57021564,235.67,235.61,30.4737]
[1732160879384,15.57021564,235.67,235.62,20.0]
[1732160880273,15.57021564,235.63,235.58,4.35637071]
[1732160880483,15.57021564,235.61,235.55,32.6103]
[1732160881071,15.57021564,235.6,235.55,32.6103]
[1732160881276,15.57021564,235.61,235.55,32.6103]
[1732160882097,15.57021564,235.59,235.53,17.44767071]
[1732160882802,0.4653634,235.75,235.54,74.09043584]
[1732160882803,15.57021564,235.62,235.54,74.09043584]
[1732160883102,15.57021564,235.67,235.58,70.0]
[1732160883285,15.57021564,235.67,235.59,4.35637071]
[1732160883485,15.57021564,235.67,235.58,70.0]
[1732160883486,15.57021564,235.65,235.55,70.0]
[1732160883816,15.57021564,235.58,235.53,13.0913]
[1732160885003,15.57021564,235.56,235.53,13.0913]
[1732160885199,0.79571223,235.67,235.5,32.6103]
[1732160885200,15.57021564,235.54,235.5,32.6103]
[1732160885390,15.57021564,235.53,235.47,4.35637071]
[1732160885786,15.57021564,235.54,235.48,70.0]
[1732160886185,15.57021564,235.54,235.47,4.35637071]
[1732160886392,15.57021564,235.54,235.48,70.0]
[1732160886702,15.57021564,235.56,235.48,70.0]
[1732160886916,15.57021564,235.56,235.48,74.35637071]
[1732160887090,0.5,235.57,235.48,74.35637071]
[1732160887091,15.57021564,235.55,235.48,74.35637071]
[1732160887678,15.57021564,235.51,235.46,13.0742]
[1732160887890,15.57021564,235.52,235.46,13.0742]
[1732160888881,15.57021564,235.53,235.46,13.0742]
[1732160889105,16.07021564,235.54,235.47,70.0]
[1732160889306,15.57021564,235.55,235.48,20.0]
[1732160889495,0.5,235.54,235.48,20.0]
[1732160889887,15.57021564,235.55,235.48,20.0]
[1732160890313,15.57021564,235.56,235.5,70.0]
[1732160890804,15.57021564,235.59,235.5,70.0]
[1732160891006,15.57021564,235.6,235.51,4.35637071]
[1732160891208,16.07021564,235.61,235.51,4.35637071]
[1732160891412,15.57021564,235.62,235.53,70.0]
[1732160891600,0.5,235.64,235.56,70.0]
[1732160892110,16.07021564,235.64,235.56,70.0]
[1732160892489,15.57021564,235.67,235.57,45.4065]
[1732160892878,0.5,235.66,235.58,20.0]
[1732160893123,15.57021564,235.67,235.58,20.0]
[1732160893406,16.07021564,235.67,235.58,20.0]
[1732160893795,16.07021564,235.69,235.59,70.0]
[1732160893987,15.57021564,235.69,235.59,70.0]
[1732160894303,15.57021564,235.69,235.58,4.35637071]
[1732160894304,0.5,235.7,235.62,70.0]
[1732160894502,16.07021564,235.7,235.62,70.0]
[1732160895386,15.57021564,235.7,235.63,20.0]
[1732160895586,15.57021564,235.71,235.63,20.0]
[1732160895791,16.07021564,235.71,235.63,20.0]
[1732160896007,16.57021564,235.71,235.63,20.0]
[1732160896208,0.5,235.67,235.63,20.0]
[1732160896398,16.07021564,235.67,235.6,20.0]
[1732160896713,15.57021564,235.65,235.58,20.0]
[1732160896908,15.57021564,235.64,235.57,45.4065]
[1732160897084,15.57021564,235.62,235.57,45.4065]
[1732160897286,15.57021564,235.63,235.57,45.4065]
[1732160897908,15.57021564,235.62,235.57,45.4065]
[1732160898701,15.57021564,235.62,235.58,20.0]
[1732160899191,16.57021564,235.6,235.53,4.35637071]
[1732160899400,15.57021564,235.57,235.51,49.13107071]